[Event "Czech Open Rapid G1 2024"]
[Site "Pardubice"]
[Date "2024.07.18"]
[Round "8.3"]
[White "Navara, David"]
[Black "Stocek, Jiri"]
[Result "1-0"]
[Annotator "TA"]
[ECO "E10"]
[WhiteElo "2682"]
[BlackElo "2524"]
[PlyCount "129"]
[EventDate "2024.07.16"]
[EventType "swiss"]
[EventCountry "CZE"]
[SourceTitle "playchess.com"]
[Source "ChessBase"]
[SourceQuality "1"]
[TimeControl "1200+10"]

{[%evp 69,129,243,256,247,286,194,179,182,297,216,216,216,226,226,229,158,238,238,340,328,335,272,324,302,317,0,279,235,339,325,326,298,475,474,472,473,427,388,637,666,629,614,1851,1900,3381,2573,1977,1160,1535,1254,1159,891,1157,1115,930,854,1556,1456,1755,1602,2696,2396]} 1. d4 {[%emt 0:00:01]} Nf6 {[%emt 0:00:02]} 2. c4 {[%emt 0:00:01]} e6 {[%emt 0:00:05]} 3. Nf3 {[%emt 0:00:02]} h6 {[%emt 0:00:07]} 4. g3 {[%emt 0:00:18]} Bb4+ {[%emt 0:00:08]} 5. Nbd2 {[%emt 0:00:06]} b6 {[%emt 0:00:02]} 6. Bg2 {[%emt 0:00:16] E10: Blumenfeld Gambit.} Bb7 {[%emt 0:00:02]} 7. a3 {[%emt 0:00:02]} Bxd2+ {[%emt 0:00:17]} 8. Qxd2 {[%emt 0:00:02]} O-O {[%emt 0:00:07]} 9. O-O {[%emt 0:00:07]} Be4 {[%emt 0:00:21]} 10. b3 {[%emt 0:00:15]} d6 {[%emt 0:00:02]} 11. Bb2 {[%emt 0:00:05]} Nbd7 {[%emt 0:00:02]} 12. Rfd1 {[%emt 0:00:55]} Re8 {[%emt 0:00:11]} 13. Bf1 {[%emt 0:02:49]} Qe7 {[%emt 0:00:15]} 14. Ne5 $146 {[%emt 0:01:01]} ({Predecessor:} 14. Rac1 Rac8 15. Ne5 Nb8 16. Nd3 c5 17. dxc5 bxc5 18. b4 Nbd7 19. Nf4 e5 20. Ng2 {1-0 Navara,D (2678)-Stocek,J (2531) CZE-ch Ostrava 2024 (6)}) 14... dxe5 {[%emt 0:01:22]} 15. dxe5 {[%emt 0:00:03]} Nxe5 {[%emt 0:00:25]} 16. Bxe5 {[%emt 0:00:03]} Rad8 {[%emt 0:01:04]} 17. Qb2 {[%emt 0:02:46]} Rxd1 {[%emt 0:02:13]} 18. Rxd1 {[%emt 0:00:02]} Ng4 {[%emt 0:00:07]} 19. Bc3 {[%emt 0:01:36]} e5 {[%emt 0:00:35]} 20. Bh3 {[%emt 0:02:32]} h5 {[%emt 0:02:28]} 21. b4 {[%emt 0:01:20]} Qf6 {[%emt 0:03:17]} 22. Be1 {[%emt 0:01:38]} Bb7 {[%emt 0:02:10]} 23. Qc3 {[%emt 0:00:44]} Qg6 {[%emt 0:02:16]} 24. Qd3 {[%emt 0:04:46]} Be4 {[%emt 0:01:18]} 25. Qd7 {[%emt 0:00:05]} Bc6 {[%emt 0:00:09]} 26. Qd3 {[%emt 0:00:37]} Be4 {[%emt 0:00:36]} 27. Qd2 {[%emt 0:00:14]} Bb7 {[%emt 0:00:11]} 28. f3 {[%emt 0:00:11]} b5 {[%emt 0:01:59]} 29. e4 {[%emt 0:01:04]} bxc4 {[%emt 0:00:22]} 30. fxg4 {[%emt 0:00:10]} hxg4 {[%emt 0:00:36]} 31. Bg2 {[%emt 0:00:03]} Bxe4 {[%emt 0:00:08]} 32. Bf2 {[%emt 0:01:19]} Bxg2 {[%emt 0:00:26]} 33. Kxg2 {[%emt 0:00:02]} Qe4+ {[%emt 0:00:15]} 34. Kg1 {[%emt 0:00:01]} Qf3 {[%emt 0:00:09]} 35. Rc1 {[%emt 0:00:02]} Qxa3 {[%emt 0:00:17]} 36. Rxc4 {[%emt 0:00:24]} e4 {[%emt 0:00:35]} 37. Qe3 {[%emt 0:00:23]} (37. Rxc7 e3 38. Bxe3 Qxe3+ (38... Rxe3 $2 39. Qd8+ Kh7 40. Qh4+ Kg6 41. Qxg4+ Kh6 42. Qf4+ Kh7 43. Qxf7 $18) 39. Qxe3 Rxe3 $11) 37... Qa2 {[%emt 0:00:11]} 38. Rxc7 {[%emt 0:00:11]} (38. Rxe4 $2 Qb1+ 39. Qe1 Qxe4 $19) 38... Qb1+ {[%emt 0:00:02]} (38... a5 $142 39. bxa5 Qxa5) 39. Qe1 {[%emt 0:00:07]} Qb3 {[%emt 0:00:06]} 40. Be3 {[%emt 0:00:15]} (40. Rxa7 e3 41. Ra1 (41. Kf1 $2 Re6 $19) 41... exf2+ 42. Qxf2 Qxb4 $17) 40... Rd8 {[%emt 0:00:07]} 41. Rc1 {[%emt 0:00:03]} (41. Rxa7 $2 Rd1 42. Bf2 Qb1 $19 (42... Rxe1+ $2 43. Bxe1 Qd1 44. Ra8+ Kh7 45. Kf1 $19) (42... e3 $2 43. Re7 $19) (42... Rxe1+ $2 43. Bxe1 Qd1 44. Kf1 $19) (42... e3 $2 43. Re7 $19)) 41... a6 {[%emt 0:00:18]} 42. Bc5 {[%emt 0:00:10]} Qb2 {[%emt 0:00:35]} (42... Qf3 $16 43. Qf2 Qd3) 43. Rd1 $18 {[%emt 0:00:16]} Re8 {[%emt 0:00:09]} (43... Rxd1 $142 44. Qxd1 Qe5 45. Qd8+ (45. Qxg4 a5 $16) 45... Kh7 46. Qh4+ Kg8 47. Qxg4 a5 48. Qc8+ Kh7) 44. Qe3 {[%emt 0:00:07]} Qa2 {[%emt 0:00:12]} 45. Re1 {[%emt 0:00:12]} Qc4 {[%emt 0:00:15]} 46. Qd4 {[%emt 0:00:11]} Qb3 {[%emt 0:00:08]} 47. Qe3 {[%emt 0:00:11]} (47. Rxe4 $2 {too greedy.} Qb1+ 48. Kf2 Rxe4 $19 (48... Qxe4 $2 49. Qxe4 Rxe4 50. Kg1 $19)) 47... Qc4 $1 {[%emt 0:00:09]} 48. Qe2 {[%emt 0:00:02]} Qe6 {[%emt 0:00:06]} (48... Qc3 $142 49. Qe3 Qc4) 49. Ra1 $18 {[%emt 0:00:11]} Ra8 {[%emt 0:00:11]} 50. Be3 {[%emt 0:00:16]} Qb3 {[%emt 0:00:18]} (50... Qc6 {was necessary.} 51. Rc1 (51. Qxg4 $2 Qc3 $17) 51... Qg6) 51. b5 $18 {[%emt 0:00:09]} (51. Rxa6 Rxa6 52. Qxa6 Qxe3+ 53. Kf1 Qf3+ 54. Ke1 e3 55. Qc8+ Kh7 56. Qc2+ g6 $19) 51... a5 {[%emt 0:00:09]} 52. b6 {[%emt 0:00:10]} a4 {[%emt 0:00:01]} 53. Bf2 {[%emt 0:00:09]} Re8 $2 {[%emt 0:00:13]} (53... a3 54. Qxe4 Rd8) 54. Qe3 $18 {[%emt 0:00:09]} Qb5 {[%emt 0:00:49]} 55. Qd4 {[%emt 0:00:03]} Qg5 {[%emt 0:00:21]} 56. Be3 {[%emt 0:00:13]} Qf5 {[%emt 0:00:10]} 57. Qxa4 {[%emt 0:00:13]} Rd8 {[%emt 0:00:05]} 58. Qc2 {[%emt 0:00:13]} Qf3 {[%emt 0:00:06]} 59. Qf2 {[%emt 0:00:09]} Rd1+ {[%emt 0:00:11]} 60. Rxd1 {[%emt 0:00:01]} Qxd1+ {[%emt 0:00:02]} 61. Kg2 {[%emt 0:00:12]} Qb3 {[%emt 0:00:07]} 62. Qd2 {[%emt 0:00:08]} f6 {[%emt 0:00:07]} 63. Bf2 {[%emt 0:00:17]} Qf3+ {[%emt 0:00:21]} 64. Kg1 {[%emt 0:00:02]} Qb3 {[%emt 0:00:01]} 65. Qd7 {[%emt 0:00:17]} 1-0

[Event "Czech Open Rapid G1 2024"]
[Site "Pardubice"]
[Date "2024.07.18"]
[Round "8.4"]
[White "Dobrowolski, Piotr"]
[Black "Pulpan, Jakub"]
[Result "0-1"]
[Annotator "RC"]
[ECO "C84"]
[WhiteElo "2412"]
[BlackElo "2383"]
[PlyCount "96"]
[EventDate "2024.07.16"]
[EventType "swiss"]
[EventCountry "CZE"]
[SourceTitle "playchess.com"]
[Source "ChessBase"]
[SourceQuality "1"]
[TimeControl "1200+10"]

1. e4 {[%emt 0:00:02]} e5 {[%emt 0:00:08]} 2. Nf3 {[%emt 0:00:04]} Nc6 {[%emt 0:00:01]} 3. Bb5 {[%emt 0:00:04]} a6 {[%emt 0:00:04]} 4. Ba4 {[%emt 0:00:30]} Nf6 {[%emt 0:00:02]} 5. O-O {[%emt 0:00:03]} Nxe4 {[%emt 0:00:07]} 6. d4 {[%emt 0:00:03]} Be7 {[%emt 0:00:02]} 7. Re1 {[%emt 0:01:06]} b5 {[%emt 0:00:09]} 8. d5 {[%emt 0:05:19]} Nc5 {[%emt 0:04:52]} 9. Bb3 {[%emt 0:03:08]} Nxb3 {[%emt 0:00:30]} 10. axb3 {[%emt 0:00:03]} Nb8 {[%emt 0:00:03]} 11. Nxe5 {[%emt 0:01:14]} d6 {[%emt 0:00:09]} 12. Nf3 {[%emt 0:00:37]} O-O {[%emt 0:00:12]} 13. Nd4 {[%emt 0:00:43]} Bb7 {[%emt 0:01:05]} 14. c4 {[%emt 0:00:18]} bxc4 {[%emt 0:00:46]} 15. bxc4 {[%emt 0:00:03]} Nd7 {[%emt 0:00:14]} 16. Nc3 {[%emt 0:00:31]} Bf6 {[%emt 0:01:59]} 17. Be3 {[%emt 0:01:07]} Re8 {[%emt 0:00:17]} 18. h3 {[%emt 0:02:23]} Be5 {[%emt 0:02:21]} 19. Qc2 {[%emt 0:00:43]} Qh4 {[%emt 0:01:28]} 20. Nf3 {[%emt 0:00:02]} Qf6 {[%emt 0:00:57]} 21. Bg5 {[%emt 0:01:53]} Qg6 {[%emt 0:00:01]} 22. Qxg6 {[%emt 0:00:23]} hxg6 {[%emt 0:00:01]} 23. Nxe5 {[%emt 0:00:10]} Nxe5 {[%emt 0:00:01]} 24. b3 {[%emt 0:00:45]} f6 {[%emt 0:01:52]} 25. Be3 {[%emt 0:00:03]} g5 {[%emt 0:00:06]} 26. Bd4 {[%emt 0:00:19]} Nd3 {[%emt 0:00:12]} 27. Rxe8+ {[%emt 0:00:09]} Rxe8 {[%emt 0:00:01]} 28. Rd1 {[%emt 0:01:41]} Nb4 {[%emt 0:00:28]} 29. Kf1 {[%emt 0:00:29]} Bc8 {[%emt 0:00:11]} 30. g4 {[%emt 0:00:16]} Bd7 {[%emt 0:00:37]} 31. Rd2 {[%emt 0:00:14]} Kf7 {[%emt 0:00:08]} 32. Nd1 {[%emt 0:00:13]} a5 {[%emt 0:00:24]} 33. Bc3 {[%emt 0:00:03]} Rb8 {[%emt 0:00:03]} 34. Ne3 {[%emt 0:00:21]} g6 {[%emt 0:01:04]} 35. Bxb4 {[%emt 0:00:02]} Rxb4 {[%emt 0:00:01]} 36. Ra2 {[%emt 0:00:01]} a4 {[%emt 0:00:55]} 37. bxa4 {[%emt 0:00:01]} Bxa4 {[%emt 0:00:00]} 38. Ke1 {[%emt 0:00:28]} f5 {[%emt 0:00:18]} 39. gxf5 {[%emt 0:00:26]} gxf5 {[%emt 0:00:01]} 40. Kd2 {[%emt 0:00:18]} f4 {[%emt 0:00:18]} 41. Nd1 {[%emt 0:00:31]} Bxd1 {[%emt 0:00:18]} 42. Kxd1 {[%emt 0:00:01]} Rxc4 43. Ke2 {[%emt 0:00:10]} Rc5 {[%emt 0:00:14]} 44. Ra7 {[%emt 0:00:13]} Kf6 {[%emt 0:00:01]} 45. Kf3 {[%emt 0:00:03]} Kf5 {[%emt 0:00:00]} 46. Rb7 {[%emt 0:00:04]} Rc3+ {[%emt 0:00:02]} 47. Kg2 {[%emt 0:00:03]} Ke4 {[%emt 0:00:06]} 48. Rb8 {[%emt 0:00:23]} Rc5 {[%emt 0:00:12]} 0-1

[Event "Czech Open Rapid G1 2024"]
[Site "Pardubice"]
[Date "2024.07.18"]
[Round "8.5"]
[White "Burdalev, Kirill"]
[Black "Neuman, Petr"]
[Result "1/2-1/2"]
[Annotator "TA"]
[ECO "E94"]
[WhiteElo "2348"]
[BlackElo "2441"]
[PlyCount "94"]
[EventDate "2024.07.16"]
[EventType "swiss"]
[EventCountry "CZE"]
[SourceTitle "playchess.com"]
[Source "ChessBase"]
[SourceQuality "1"]
[TimeControl "1200+10"]

{[%evp 25,94,35,45,36,39,22,22,9,14,6,16,14,39,48,33,37,62,57,100,99,104,103,102,71,98,83,90,52,106,87,183,195,207,141,154,155,149,56,56,64,70,62,85,45,72,31,29,29,64,64,65,63,142,49,51,51,51,49,42,36,36,36,36,36,36,36,36,36,36,36,36]} 1. d4 {[%emt 0:00:01]} Nf6 {[%emt 0:00:06]} 2. c4 {[%emt 0:00:02]} g6 {[%emt 0:00:01]} 3. Nc3 {[%emt 0:00:35]} Bg7 {[%emt 0:00:03]} 4. e4 {[%emt 0:00:02]} d6 {[%emt 0:00:02]} 5. Be2 {[%emt 0:00:06]} O-O {[%emt 0:00:03]} 6. Nf3 {[%emt 0:00:07]} e5 {[%emt 0:00:02]} 7. Be3 {[%emt 0:00:15]} Na6 {[%emt 0:00:05]} 8. O-O {[%emt 0:00:26]} Ng4 {[%emt 0:00:06]} 9. Bg5 {[%emt 0:00:01]} Qe8 {[%emt 0:00:01]} 10. dxe5 {[%emt 0:01:35]} dxe5 {[%emt 0:00:02]} 11. h3 {[%emt 0:00:09]} h6 {[%emt 0:00:01]} 12. Bd2 {[%emt 0:00:01]} Nf6 {[%emt 0:00:01]} 13. Be3 {[%emt 0:00:09]} Qe7 {[%emt 0:00:02]} 14. Qc2 {[%emt 0:00:31]} c6 {[%emt 0:00:08]} 15. Rfd1 {[%emt 0:00:19]} Nh5 {[%emt 0:00:12]} 16. Qc1 {[%emt 0:01:14] The position is equal.} Nf4 {[%emt 0:01:44]} 17. Bxf4 {[%emt 0:00:06]} exf4 {[%emt 0:00:02]} 18. Qxf4 {[%emt 0:00:01]} f5 {[%emt 0:00:05]} 19. Qd6 {[%emt 0:01:34]} Qxd6 {[%emt 0:00:30]} 20. Rxd6 {[%emt 0:00:01]} fxe4 {[%emt 0:00:11]} 21. Nxe4 {[%emt 0:03:56][%cal Oa1d1]} Bxb2 {[%emt 0:03:19]} (21... Bf5 22. Ng3 $16) 22. Rb1 {[%emt 0:00:01]} Bg7 {[%emt 0:00:01]} 23. c5 $36 {[%emt 0:00:48][%mdl 2048] White is really pushing.} (23. Rxg6 Bf5 24. Rxg7+ Kxg7 25. Rxb7+ Kg8 (25... Rf7 26. Rxf7+ Kxf7 27. Nd6+ Kf6 28. Nxf5 $14)) 23... Nc7 {[%emt 0:02:05]} 24. Bc4+ {[%emt 0:03:07]} ({Of course not} 24. Rxg6 $6 Bf5 25. Bc4+ Kh8 26. Rxg7 Kxg7 27. Rxb7 Bxe4 $14) 24... Kh7 {[%emt 0:00:12]} 25. Ng3 {[%emt 0:02:43] A dynamic duo of knights.} Ne8 {[%emt 0:00:04]} 26. Rd8 {[%emt 0:00:22]} Bf6 {[%emt 0:00:01]} (26... Nf6 $14 27. Rd6 Ne8) 27. Rd2 {[%emt 0:01:16] White is much more active.} Ng7 {[%emt 0:00:04]} (27... h5 $16) 28. Ne4 $18 {[%emt 0:00:09] Hoping for Nxf6+.} Bd8 {[%emt 0:03:20]} 29. Nd6 {[%emt 0:00:07][%cal Od6c8] Nxc8! would now be deadly.} b6 {[%emt 0:00:28]} 30. Nxc8 {[%emt 0:00:45]} Rxc8 {[%emt 0:00:01] Black is weak on the light squares} 31. cxb6 {[%emt 0:00:47]} (31. Ba6 $16 Rc7 32. cxb6 axb6 33. Rxb6) 31... Bxb6 $14 {[%emt 0:00:04]} 32. Rd7 {[%emt 0:00:09]} Rcd8 {[%emt 0:01:14]} 33. Rbd1 {[%emt 0:00:10]} g5 {[%emt 0:01:32]} 34. Bd3+ {[%emt 0:00:18]} Kh8 {[%emt 0:00:30]} 35. Be4 {[%emt 0:00:10][%cal Oa2a4]} Rxd7 {[%emt 0:00:55]} 36. Rxd7 {[%emt 0:00:01][%cal Od7d6] Threatens to win with Rd6!} Rd8 {[%emt 0:00:01]} 37. Rxd8+ {[%emt 0:00:08]} (37. Bxc6 Rxd7 38. Bxd7 Nh5 $16) 37... Bxd8 {[%emt 0:00:01][%mdl 4096] Endgame. KBN-KBN} 38. Ne5 {[%emt 0:00:25] Nf7+ is the strong threat.} Ne6 {[%emt 0:00:18] [#]} ({Black should try} 38... Kg8 $1 $14) 39. Nxc6 {[%emt 0:00:15]} ({White should play} 39. Bf5 $1 $16 {[%cal Rf5e6]} Nd4 40. Nf7+ Kg7 41. Nxd8 Nxf5 42. Nxc6) 39... Bb6 {[%emt 0:00:02] White is slightly better.} 40. Kf1 {[%emt 0:00:23]} Kg7 {[%emt 0:00:01]} 41. g3 {[%emt 0:00:17]} Kf6 {[%emt 0:00:04]} 42. Ke2 {[%emt 0:01:19]} Nd4+ {[%emt 0:00:01]} 43. Nxd4 {[%emt 0:00:02]} Bxd4 {[%emt 0:00:01]} 44. f4 {[%emt 0:01:01]} gxf4 {[%emt 0:00:06]} 45. gxf4 {[%emt 0:00:01]} Bb6 {[%emt 0:00:05]} 46. Kf3 {[%emt 0:00:01]} Bc7 {[%emt 0:00:01]} 47. Kg4 {[%emt 0:00:04]} Bb8 {[%emt 0:00:02] Weighted Error Value: White=0.16 (very precise) /Black=0.15 (very precise) .  Mistake:       	White=2     	Black=3      Inaccurate:     	White=5     	Black=3      OK:         	White=12    	Black=17     Best:        	White=1     	Black=1} 1/2-1/2

[Event "Czech Open Rapid G1 2024"]
[Site "Pardubice"]
[Date "2024.07.18"]
[Round "8.6"]
[White "Kuegel, Tobias"]
[Black "Johansson, Linus"]
[Result "1/2-1/2"]
[Annotator "TA"]
[ECO "C10"]
[WhiteElo "2416"]
[BlackElo "2451"]
[PlyCount "112"]
[EventDate "2024.07.16"]
[EventType "swiss"]
[EventCountry "CZE"]
[SourceTitle "playchess.com"]
[Source "ChessBase"]
[SourceQuality "1"]
[TimeControl "1200+10"]

{[%evp 19,112,11,14,0,3,-15,-35,-19,-12,-24,-9,-19,0,0,-6,-10,0,0,0,-4,0,0,0,0,0,0,0,0,0,0,0,0,0,0,-5,-4,-7,-14,-13,-8,-4,-3,-4,-22,0,-13,-9,-9,-6,-6,0,-14,0,0,0,-4,-3,-6,0,0,0,0,0,0,0,0,0,0,0,0,0,0,0,0,0,0,0,0,0,0,0,0,0,0,0,0,0,0,0,0,0,0,0,0,0]} 1. e4 {[%emt 0:00:29]} e6 {[%emt 0:00:11]} 2. d4 {[%emt 0:00:04]} d5 {[%emt 0:00:01]} 3. Nc3 {[%emt 0:00:01]} Nf6 {[%emt 0:00:01]} 4. Bg5 {[%emt 0:00:10]} dxe4 {[%emt 0:00:04]} 5. Nxe4 {[%emt 0:00:03]} Nbd7 {[%emt 0:00:02]} 6. Nf3 {[%emt 0:00:23]} h6 {[%emt 0:00:02]} 7. Nxf6+ {[%emt 0:01:01]} Nxf6 {[%emt 0:00:03]} 8. Bh4 {[%emt 0:00:10]} c5 {[%emt 0:00:04]} 9. Bb5+ {[%emt 0:01:44]} Bd7 {[%emt 0:00:01]} 10. Bxd7+ {[%emt 0:00:11]} Qxd7 {[%emt 0:00:02]} 11. O-O {[%emt 0:00:22]} cxd4 {[%emt 0:00:20]} 12. Qxd4 {[%emt 0:00:39]} Qxd4 {[%emt 0:00:18]} 13. Nxd4 {[%emt 0:00:02] Schwarz steht etwas besser.} O-O-O {[%emt 0:00:10]} 14. Rad1 {[%emt 0:00:41]} Bc5 {[%emt 0:00:26]} 15. Nb3 {[%emt 0:00:49] Die Stellung ist ausgeglichen.} Bb6 {[%emt 0:00:10]} 16. Bxf6 {[%emt 0:00:19]} gxf6 {[%emt 0:00:01]} 17. Rfe1 {[%emt 0:00:03]} f5 {[%emt 0:00:24]} 18. Kf1 {[%emt 0:00:10]} h5 {[%emt 0:00:09]} 19. Nd2 {[%emt 0:00:46]} Bd4 {[%emt 0:00:23]} 20. c3 {[%emt 0:01:42]} Bf6 {[%emt 0:00:08]} 21. Nf3 {[%emt 0:01:53]} Rhg8 {[%emt 0:00:02]} 22. g3 {[%emt 0:02:11]} Kc7 {[%emt 0:00:08]} 23. Ke2 {[%emt 0:01:05]} a6 {[%emt 0:00:13]} 24. Rxd8 {[%emt 0:02:01]} Kxd8 $11 {[%emt 0:00:02][%mdl 4096] Endspiel. KRB-KRN} 25. Rd1+ {[%emt 0:03:07]} Ke7 {[%emt 0:00:01]} 26. Nd4 {[%emt 0:00:01]} h4 {[%emt 0:00:34]} 27. Nf3 {[%emt 0:00:11]} Rg4 {[%emt 0:00:36]} 28. Rd3 {[%emt 0:00:34]} hxg3 {[%emt 0:00:17]} 29. hxg3 {[%emt 0:00:04]} Ra4 {[%emt 0:00:02]} 30. a3 {[%emt 0:00:07]} Re4+ {[%emt 0:00:12]} 31. Re3 {[%emt 0:00:13]} Rc4 {[%emt 0:00:17]} 32. Ne5 {[%emt 0:00:50]} Rc8 {[%emt 0:06:35]} 33. Nf3 {[%emt 0:00:57]} b5 {[%emt 0:01:03]} 34. Rd3 {[%emt 0:01:15]} Rc4 {[%emt 0:00:13]} 35. Re3 {[%emt 0:00:23]} f4 {[%emt 0:00:23]} 36. gxf4 {[%emt 0:00:03]} Rxf4 {[%emt 0:00:02]} 37. Ne5 {[%emt 0:00:23]} Bxe5 {[%emt 0:02:50]} 38. Rxe5 {[%emt 0:00:03] KR-KR} Rh4 {[%emt 0:00:01]} 39. Rc5 {[%emt 0:01:05]} Kd7 {[%emt 0:00:01]} 40. b4 {[%emt 0:00:14]} Rh1 {[%emt 0:01:31]} 41. a4 {[%emt 0:00:18]} bxa4 {[%emt 0:01:15]} 42. Ra5 {[%emt 0:00:01][%csl LRa4,LRa6]} Ra1 {[%emt 0:00:02]} 43. Rxa6 {[%emt 0:00:02]} a3 {[%emt 0:00:01] [#] Droht stark ...a2.} 44. b5 {[%emt 0:00:05]} a2 {[%emt 0:03:03] Weiss muss nun ...e5 beachten.} 45. c4 {[%emt 0:00:01]} Kc8 {[%emt 0:00:52]} 46. c5 {[%emt 0:00:13]} Rb1 {[%emt 0:00:07]} 47. Rxa2 {[%emt 0:00:23]} Rxb5 {[%emt 0:00:02]} 48. Ra7 {[%emt 0:00:14]} Rxc5 {[%emt 0:00:40]} 49. Rxf7 {[%emt 0:00:02]} Kd8 {[%emt 0:00:01]} 50. f4 {[%emt 0:00:07]} Ke8 {[%emt 0:00:02]} 51. Ra7 {[%emt 0:00:06]} Rc3 {[%emt 0:00:02]} 52. Ra5 {[%emt 0:00:04]} Ke7 {[%emt 0:00:05]} 53. f5 {[%emt 0:00:05]} exf5 {[%emt 0:00:03]} 54. Rxf5 {[%emt 0:00:02]} Rc6 {[%emt 0:00:01]} 55. Re5+ {[%emt 0:00:01]} Re6 {[%emt 0:00:01]} 56. Rxe6+ {[%emt 0:00:01]} Kxe6 {Eine ausgeglichene aber spannende Partie.   Gewichteter Fehlerwert: Weiß=0.03 (makellos) /Schwarz=0.03 (makellos) .  OK:         	Weiß=26    	Schwarz=17} 1/2-1/2